[Event "23rd Hoogeveen Open 2019"]
[Site "Hoogeveen"]
[Date "2019.10.26"]
[Round "9.9"]
[White "Vestby-Ellingsen, Mads"]
[Black "Grooten, Herman"]
[Result "1/2-1/2"]
[ECO "E15"]
[WhiteElo "2363"]
[BlackElo "2274"]
[Annotator "NA"]
[PlyCount "138"]
[EventDate "2019.10.19"]
[EventType "swiss"]
[EventCountry "NED"]
[SourceTitle "playchess.com"]
[Source "ChessBase"]
[SourceQuality "1"]
[TimeControl "40/5400+30:1800+30"]

1. d4 {[%emt 0:00:00]} Nf6 {[%emt 0:00:00]} 2. c4 {[%emt 0:00:00]} e6 {[%emt 0:00:00]} 3. Nf3 {[%emt 0:00:00]} b6 {[%emt 0:00:00]} 4. g3 {[%emt 0:00:15]} Ba6 {[%emt 0:00:05]} 5. Qc2 {[%emt 0:00:20]} Bb7 {[%emt 0:14:18]} 6. Bg2 {[%emt 0:00:20]} Nc6 {[%emt 0:01:04]} 7. O-O {[%emt 0:02:18]} Nb4 {[%emt 0:02:17]} 8. Qd1 {[%emt 0:04:36]} d5 {[%emt 0:02:15]} 9. a3 {[%emt 0:06:13]} Na6 {[%emt 0:02:09]} 10. cxd5 {[%emt 0:07:16]} exd5 {[%emt 0:00:13]} 11. Nc3 {[%emt 0:01:01]} Be7 {[%emt 0:05:46]} 12. Bg5 {[%emt 0:01:16]} O-O {[%emt 0:00:38]} 13. Rc1 {[%emt 0:03:36]} c6 $14 {[%emt 0:14:10]} 14. e3 {[%emt 0:08:28]} Nc7 {[%emt 0:01:10]} 15. Ne5 {[%emt 0:04:11]} Ne6 {[%emt 0:05:08]} 16. Bxf6 {[%emt 0:00:20]} Bxf6 {[%emt 0:00:09]} 17. Nd3 {[%emt 0:00:26]} Qe7 {[%emt 0:05:57]} 18. Qd2 {[%emt 0:17:14]} Rfd8 {[%emt 0:00:17]} 19. Rfd1 {[%emt 0:02:34]} h5 {[%emt 0:03:25]} 20. h4 {[%emt 0:05:02]} g6 {[%emt 0:01:19]} 21. Ne2 {[%emt 0:01:33]} Ng7 {[%emt 0:04:20]} 22. Rc2 {[%emt 0:04:39]} Nf5 {[%emt 0:04:18]} 23. Rdc1 {[%emt 0:08:08]} a5 {[%emt 0:02:58]} 24. Nef4 {[%emt 0:00:35]} Nd6 {[%emt 0:02:31]} 25. Rxc6 {[%emt 0:11:45]} Bxc6 {[%emt 0:01:05]} 26. Rxc6 {[%emt 0:00:08]} Ne4 {[%emt 0:01:05]} 27. Qc2 {[%emt 0:00:26]} Rd6 {[%emt 0:06:14]} 28. Rxb6 {[%emt 0:05:06]} Rxb6 {[%emt 0:06:08]} 29. Nxd5 {[%emt 0:00:09]} Qe6 {[%emt 0:03:03]} 30. Nxb6 {[%emt 0:00:55]} Rb8 {[%emt 0:00:38]} 31. Bxe4 {[%emt 0:01:54]} Qxb6 {[%emt 0:01:51]} 32. Bd5 {[%emt 0:01:19]} Qd6 {[%emt 0:05:08]} 33. Nf4 {[%emt 0:01:21]} Kf8 {[%emt 0:00:33]} 34. Qc4 {[%emt 0:02:07]} Qd7 {[%emt 0:01:54]} 35. b3 {[%emt 0:00:57]} Rc8 {[%emt 0:00:17]} 36. Qa6 {[%emt 0:00:06]} Rc1+ {[%emt 0:00:43]} 37. Kh2 {[%emt 0:00:21]} Bd8 {[%emt 0:01:11]} 38. Qb7 {[%emt 0:01:32]} Qxb7 {[%emt 0:02:09]} 39. Bxb7 {[%emt 0:00:06]} Be7 {[%emt 0:00:12]} 40. a4 {[%emt 0:00:10]} Bb4 {[%emt 0:01:12]} 41. Bd5 {[%emt 0:03:43]} Rc2 {[%emt 0:01:43]} 42. Kg2 {[%emt 0:03:21]} Kg7 {[%emt 0:00:38]} 43. Bc4 {[%emt 0:00:31]} f6 {[%emt 0:01:11]} 44. Nd3 {[%emt 0:06:40]} Bd6 {[%emt 0:00:53]} 45. e4 {[%emt 0:02:15]} Bc7 {[%emt 0:01:59]} 46. d5 {[%emt 0:10:38]} Bb8 {[%emt 0:04:45]} 47. Kf1 {[%emt 0:00:31]} Ra2 {[%emt 0:01:35]} 48. f4 {[%emt 0:02:51]} Rd2 {[%emt 0:04:06]} 49. e5 {[%emt 0:03:20]} fxe5 {[%emt 0:00:34]} 50. fxe5 {[%emt 0:01:52]} Rxd3 {[%emt 0:08:24]} 51. Bxd3 {[%emt 0:00:06]} Bxe5 {[%emt 0:00:03]} 52. Kf2 {[%emt 0:00:35]} Bd6 {[%emt 0:00:47]} 53. Kf3 {[%emt 0:00:50]} Kf6 {[%emt 0:04:30]} 54. Bb5 {[%emt 0:00:32]} Kf7 {[%emt 0:01:10]} 55. g4 {[%emt 0:00:28]} hxg4+ {[%emt 0:00:09]} 56. Kxg4 {[%emt 0:00:05]} Be7 {[%emt 0:00:43]} 57. Kf4 {[%emt 0:00:52]} Bxh4 {[%emt 0:00:32]} 58. Ke5 {[%emt 0:00:35]} Bg3+ {[%emt 0:00:07]} 59. Kd4 {[%emt 0:00:05]} Bd6 {[%emt 0:00:34]} 60. Be2 {[%emt 0:00:35]} Ke7 {[%emt 0:00:09]} 61. Bg4 {[%emt 0:00:22]} Bb4 {[%emt 0:00:16]} 62. Kc4 {[%emt 0:00:10]} Kd6 {[%emt 0:00:08]} 63. Be6 {[%emt 0:00:12]} g5 {[%emt 0:00:16]} 64. Kd4 {[%emt 0:00:08]} Bc5+ {[%emt 0:00:33]} 65. Ke4 {[%emt 0:00:08]} Bb4 {[%emt 0:00:11]} 66. Kf5 {[%emt 0:00:10]} Bd2 {[%emt 0:00:12]} 67. Kg4 {[%emt 0:00:21]} Ke5 {[%emt 0:00:20]} 68. Bf7 {[%emt 0:00:15]} Kf6 {[%emt 0:00:26]} 69. Bg8 {[%emt 0:00:28]} Bb4 {[%emt 0:00:23]} 1/2-1/2

[Event "23rd Hoogeveen Open 2019"]
[Site "Hoogeveen"]
[Date "2019.10.26"]
[Round "9.10"]
[White "Dixit, Nikhil"]
[Black "Hilwerda, Jonas"]
[Result "1/2-1/2"]
[ECO "C47"]
[WhiteElo "2358"]
[BlackElo "2229"]
[Annotator "NA"]
[PlyCount "56"]
[EventDate "2019.10.19"]
[EventType "swiss"]
[EventCountry "NED"]
[SourceTitle "playchess.com"]
[Source "ChessBase"]
[SourceQuality "1"]
[TimeControl "40/5400+30:1800+30"]

1. e4 {[%emt 0:00:00]} e5 {[%emt 0:00:00]} 2. Nf3 {[%emt 0:00:00]} Nc6 {[%emt 0:00:00]} 3. Nc3 {[%emt 0:00:00]} Nf6 {[%emt 0:00:00]} 4. d4 {[%emt 0:00:02]} exd4 {[%emt 0:00:00]} 5. Nxd4 {[%emt 0:00:03]} Bb4 {[%emt 0:00:00]} 6. Nxc6 {[%emt 0:00:04]} bxc6 {[%emt 0:00:00]} 7. Bd3 {[%emt 0:00:04]} O-O {[%emt 0:00:00]} 8. O-O {[%emt 0:00:08]} d5 {[%emt 0:00:00]} 9. exd5 {[%emt 0:00:05] C47: Scotch Four Knights and Four Knights with 4 g3} Bg4 {[%emt 0:00:05]} (9... cxd5 10. Bg5 c6 11. Qf3 Bd6 12. Rae1 Rb8 13. Nd1 h6 14. Bxf6 Qxf6 15. Qxf6 gxf6 16. b3 f5 17. Ne3 f4 18. Nf5 Bxf5 19. Bxf5 Kg7 20. g3 Kf6 21. Bd3 {½-½ (30) Movsesian,S (2654)-Ding,L (2811) Khanty-Mansiysk 2019}) 10. f3 {[%emt 0:01:46]} Bh5 {[%emt 0:00:05]} 11. Bg5 {[%emt 0:02:05]} cxd5 {[%emt 0:00:24]} 12. Bxf6 {[%emt 0:08:08]} Qxf6 {[%emt 0:00:02]} 13. Nxd5 {[%emt 0:02:50]} Qxb2 {[%emt 0:00:02] [#]} 14. Nxb4 $146 {[%emt 0:05:47]} ({Predecessor:} 14. Rb1 Bc5+ 15. Kh1 Qe5 16. f4 Bxd1 17. fxe5 Bg4 18. h3 Bd7 19. Nxc7 Rac8 20. Nd5 Rfe8 21. Rfe1 {½-½ (21) Bruzon Batista,L (2643)-Nyzhnyk,I (2666) Orlando 2019}) 14... Qxb4 {[%emt 0:01:04]} 15. Qe1 {[%emt 0:00:50]} Qb6+ {[%emt 0:06:22]} 16. Qf2 {[%emt 0:01:25]} Rab8 {[%emt 0:02:41]} 17. f4 {[%emt 0:02:33]} f6 {[%emt 0:03:25]} 18. a4 {[%emt 0:02:43]} Qxf2+ {[%emt 0:07:25]} 19. Kxf2 {[%emt 0:00:41]} Rfe8 {[%emt 0:10:50]} 20. Rfb1 $11 {[%emt 0:01:12]} Bf7 {[%emt 0:06:13]} 21. Rb5 {[%emt 0:05:41]} c6 {[%emt 0:04:30]} 22. Rxb8 {[%emt 0:10:25]} Rxb8 {[%emt 0:00:09]} 23. Be4 {[%emt 0:06:06]} Bd5 {[%emt 0:05:05]} 24. Bxd5+ {[%emt 0:05:19]} cxd5 {[%emt 0:00:06]} 25. Rd1 {[%emt 0:04:04]} Rb4 {[%emt 0:01:04]} 26. Ke3 {[%emt 0:00:21]} Re4+ {[%emt 0:00:26]} 27. Kf3 {[%emt 0:00:37]} Rxa4 {[%emt 0:00:07]} 28. Rxd5 {[%emt 0:00:05]} Rc4 {[%emt 0:13:27] Ke4} 1/2-1/2

[Event "23rd Hoogeveen Open 2019"]
[Site "Hoogeveen"]
[Date "2019.10.26"]
[Round "9.11"]
[White "Manush Shah"]
[Black "Gomes, Mary Ann"]
[Result "1/2-1/2"]
[ECO "E43"]
[WhiteElo "2352"]
[BlackElo "2268"]
[Annotator "NA"]
[PlyCount "85"]
[EventDate "2019.10.19"]
[EventType "swiss"]
[EventCountry "NED"]
[SourceTitle "playchess.com"]
[Source "ChessBase"]
[SourceQuality "1"]
[TimeControl "40/5400+30:1800+30"]

1. d4 {[%emt 0:00:12]} Nf6 {[%emt 0:00:00]} 2. Nf3 {[%emt 0:00:10]} b6 {[%emt 0:00:15]} 3. e3 {[%emt 0:00:27]} Bb7 {[%emt 0:00:12]} 4. c4 {[%emt 0:00:07]} e6 {[%emt 0:00:10]} 5. Nc3 {[%emt 0:00:01]} Bb4 {[%emt 0:00:29]} 6. Bd3 {[%emt 0:00:36]} Ne4 {[%emt 0:00:13]} 7. Qc2 {[%emt 0:00:29]} f5 {[%emt 0:00:10]} 8. O-O {[%emt 0:01:35]} Bxc3 {[%emt 0:00:37]} 9. bxc3 {[%emt 0:00:08]} O-O {[%emt 0:01:40]} 10. Ne1 {[%emt 0:05:18]} d6 {[%emt 0:03:59]} 11. f3 {[%emt 0:00:31]} Ng5 {[%emt 0:01:24]} 12. Ba3 {[%emt 0:27:29]} c5 {[%emt 0:04:22]} 13. Rd1 {[%emt 0:02:24]} Qe7 {[%emt 0:01:33]} 14. Rd2 {[%emt 0:04:25]} Nd7 $11 {[%emt 0:09:32]} 15. Re2 {[%emt 0:05:08]} g6 {[%emt 0:02:17]} 16. f4 {[%emt 0:06:13]} Ne4 {[%emt 0:00:13]} 17. Nf3 {[%emt 0:00:31]} Ndf6 {[%emt 0:02:35]} 18. Bc1 {[%emt 0:02:03]} Rac8 {[%emt 0:00:58]} 19. Bd2 {[%emt 0:02:29]} b5 {[%emt 0:05:16]} 20. Qb3 {[%emt 0:03:53]} bxc4 {[%emt 0:05:29]} 21. Bxc4 {[%emt 0:02:30]} d5 {[%emt 0:01:09]} 22. Bb5 {[%emt 0:00:01]} Nd6 {[%emt 0:06:30]} 23. Rb1 {[%emt 0:01:51]} Nfe4 {[%emt 0:03:21]} 24. Be1 {[%emt 0:02:32]} Rb8 {[%emt 0:03:42]} 25. dxc5 {[%emt 0:06:24]} Nxc5 {[%emt 0:03:11]} 26. Qa3 {[%emt 0:00:18]} Qc7 {[%emt 0:02:59]} 27. Reb2 {[%emt 0:01:24]} Ba8 {[%emt 0:08:51]} 28. Nd4 {[%emt 0:02:29]} Rb6 {[%emt 0:03:49]} 29. Be2 {[%emt 0:03:08]} Rfb8 {[%emt 0:10:52]} 30. Rxb6 {[%emt 0:00:12]} Rxb6 {[%emt 0:00:09]} 31. Rxb6 {[%emt 0:00:08]} Qxb6 {[%emt 0:00:05]} 32. Qb4 {[%emt 0:00:32]} Kf7 {[%emt 0:00:27]} 33. Nf3 {[%emt 0:04:07]} Nce4 {[%emt 0:03:15]} 34. Ne5+ {[%emt 0:00:37]} Kg7 {[%emt 0:01:16]} 35. Qd4 {[%emt 0:03:00]} Qxd4 {[%emt 0:01:56]} 36. cxd4 {[%emt 0:00:11]} Nf7 {[%emt 0:00:05]} 37. Bb5 {[%emt 0:03:53]} Bb7 {[%emt 0:06:49]} 38. Bd7 {[%emt 0:06:22]} Nxe5 {[%emt 0:01:05]} 39. fxe5 {[%emt 0:00:03]} Kf7 {[%emt 0:00:10]} 40. Bb4 {[%emt 0:00:08]} Ba6 {[%emt 0:00:38]} 41. a4 {[%emt 0:34:47]} Bc4 {[%emt 0:30:29]} 42. g3 {[%emt 0:00:00]} g5 {[%emt 0:00:00]} 43. Kg2 {[%emt 0:00:00]} 1/2-1/2

[Event "23rd Hoogeveen Open 2019"]
[Site "Hoogeveen"]
[Date "2019.10.26"]
[Round "9.12"]
[White "De Jong, Migchiel"]
[Black "Mueer, Sebastian"]
[Result "1-0"]
[ECO "B51"]
[WhiteElo "2330"]
[BlackElo "2194"]
[Annotator "NA"]
[PlyCount "95"]
[EventDate "2019.10.19"]
[EventType "swiss"]
[EventCountry "NED"]
[SourceTitle "playchess.com"]
[Source "ChessBase"]
[SourceQuality "1"]
[TimeControl "40/5400+30:1800+30"]

1. e4 {[%emt 0:00:00]} c5 {[%emt 0:04:51]} 2. Nf3 {[%emt 0:00:00]} d6 {[%emt 0:00:03]} 3. Bb5+ {[%emt 0:00:11]} Nd7 {[%emt 0:00:08]} 4. d4 {[%emt 0:01:48]} cxd4 {[%emt 0:00:20]} 5. Qxd4 {[%emt 0:00:09]} a6 {[%emt 0:00:18]} 6. Bxd7+ {[%emt 0:00:09]} Bxd7 {[%emt 0:00:06]} 7. Nc3 {[%emt 0:00:34]} e5 {[%emt 0:00:12]} 8. Qd3 {[%emt 0:00:28]} h6 {[%emt 0:00:07]} 9. O-O {[%emt 0:01:27]} Nf6 {[%emt 0:01:07]} 10. a4 {[%emt 0:01:03]} Rc8 {[%emt 0:01:51] B51: Sicilian: Moscow Variation (3 Bb5+) without 3...Bd7} 11. Rd1 {[%emt 0:00:30]} Qc7 {[%emt 0:00:19]} 12. Nd2 {[%emt 0:00:26]} Be7 {[%emt 0:04:06]} 13. Nf1 {[%emt 0:00:14]} O-O {[%emt 0:04:43]} 14. Ne3 {[%emt 0:00:06]} Be6 {[%emt 0:01:01]} 15. Bd2 {[%emt 0:05:04]} Qc5 {[%emt 0:04:42]} 16. Be1 {[%emt 0:01:02] [#]} g6 $146 {[%emt 0:16:31]} ({Predecessor:} 16... Rfd8 17. a5 Rc7 18. b3 {½-½ (37) Chandra,A (2492)-Indjic,A (2630) Caleta 2019}) 17. b4 {[%emt 0:01:40]} Qc7 {[%emt 0:02:19]} 18. Ncd5 {[%emt 0:01:32]} ({White should play} 18. f3 $14) 18... Nxd5 {[%emt 0:05:26]} (18... Bxd5 $5 19. exd5 Nh5 $11) 19. Nxd5 {[%emt 0:00:18]} Bxd5 {[%emt 0:00:18]} 20. Qxd5 {[%emt 0:00:08]} Qc6 $11 {[%emt 0:09:42]} 21. c3 {[%emt 0:02:43]} Qxd5 {[%emt 0:03:26]} 22. Rxd5 {[%emt 0:00:09]} Rc4 {[%emt 0:00:05]} 23. f3 {[%emt 0:01:18]} f5 {[%emt 0:00:43]} 24. exf5 {[%emt 0:00:14]} gxf5 {[%emt 0:00:02]} 25. Bd2 {[%emt 0:01:26]} h5 {[%emt 0:01:07]} 26. f4 {[%emt 0:01:25]} Rd8 {[%emt 0:17:05]} 27. Rf1 {[%emt 0:00:56]} Kf7 {[%emt 0:02:46]} 28. fxe5 {[%emt 0:01:16]} Ke6 {[%emt 0:00:01]} 29. exd6 {[%emt 0:00:21]} Kxd5 {[%emt 0:00:21]} 30. dxe7 {[%emt 0:00:18]} Re8 {[%emt 0:00:05]} 31. Rxf5+ {[%emt 0:01:20]} Ke6 {[%emt 0:01:44]} 32. Rxh5 {[%emt 0:00:36]} Rxe7 {[%emt 0:00:22]} 33. Kf2 {[%emt 0:02:39]} Re4 {[%emt 0:05:53]} 34. Be3 {[%emt 0:01:39]} Kd7 {[%emt 0:01:09]} 35. Rd5+ {[%emt 0:02:32]} Kc6 {[%emt 0:00:29]} 36. Rc5+ {[%emt 0:01:48]} Kd6 {[%emt 0:00:53]} 37. Bd4 {[%emt 0:01:18]} Re2+ {[%emt 0:03:31]} 38. Kf3 {[%emt 0:00:43]} Ra2 {[%emt 0:01:02]} 39. a5 {[%emt 0:02:18]} Rf7+ {[%emt 0:03:24]} 40. Kg3 {[%emt 0:00:06]} Rd2 {[%emt 0:06:17]} 41. h4 {[%emt 0:31:26]} Rf8 {[%emt 0:30:44]} 42. Rg5 {[%emt 0:00:26]} Ke6 {[%emt 0:00:26]} 43. h5 {[%emt 0:00:34]} Rf5 {[%emt 0:00:51]} 44. Rg6+ {[%emt 0:00:32]} Kf7 {[%emt 0:00:00]} 45. Kg4 {[%emt 0:00:00]} Rd5 {[%emt 0:00:00]} 46. Kh4 {[%emt 0:00:00]} Rd1 {[%emt 0:00:00]} 47. g4 {[%emt 0:00:00]} Rd3 {[%emt 0:00:00]} 48. Rg7+ {[%emt 0:00:00]} 1-0

[Event "23rd Hoogeveen Open 2019"]
[Site "Hoogeveen"]
[Date "2019.10.26"]
[Round "9.13"]
[White "Blagojevic, Tijana"]
[Black "De Boer, Eelke"]
[Result "0-1"]
[ECO "B51"]
[WhiteElo "2151"]
[BlackElo "2323"]
[Annotator "NA"]
[PlyCount "86"]
[EventDate "2019.10.19"]
[EventType "swiss"]
[EventCountry "NED"]
[SourceTitle "playchess.com"]
[Source "ChessBase"]
[SourceQuality "1"]
[TimeControl "40/5400+30:1800+30"]

1. e4 {[%emt 0:00:00]} c5 {[%emt 0:00:00]} 2. Nf3 {[%emt 0:00:00]} d6 {[%emt 0:00:00]} 3. Bb5+ {[%emt 0:00:00]} Nd7 {[%emt 0:00:00]} 4. O-O {[%emt 0:00:00]} a6 {[%emt 0:00:00]} 5. Bd3 {[%emt 0:00:00]} Ngf6 {[%emt 0:00:09]} 6. c3 {[%emt 0:00:02] B51: Sicilian: Moscow Variation (3 Bb5+) without 3...Bd7} (6. Re1 g6 7. c3 Bg7 8. Bc2 O-O 9. d4 e5 10. a4 Rb8 11. dxe5 Nxe5 12. Nxe5 dxe5 13. Qxd8 Rxd8 {½-½ (65) Amin,B (2707)-Artemiev,V (2761) Danzhou 2019}) 6... b5 {[%emt 0:01:17]} 7. Bc2 {[%emt 0:00:15]} e5 {[%emt 0:00:16]} 8. d4 {[%emt 0:00:32]} Be7 {[%emt 0:00:14]} 9. Re1 {[%emt 0:01:12]} O-O {[%emt 0:00:29]} 10. h3 {[%emt 0:01:40]} Qc7 {[%emt 0:04:15]} 11. a4 $146 {[%emt 0:05:07]} ({Predecessor:} 11. Nbd2 Re8 12. Nf1 Bf8 {½-½ (39) Loiacono,A (2182)-Movileanu,D (2199) Chianciano Terme 2018}) 11... Bb7 {[%emt 0:00:35]} 12. d5 {[%emt 0:01:04]} c4 {[%emt 0:00:57]} 13. Na3 {[%emt 0:03:57]} Qb6 {[%emt 0:03:03]} 14. Be3 {[%emt 0:00:22]} Nc5 {[%emt 0:00:16]} 15. Nh4 {[%emt 0:04:14]} (15. Nd2 $16) 15... Rfc8 {[%emt 0:10:17]} 16. Nf5 {[%emt 0:00:55]} Bf8 {[%emt 0:01:07]} 17. Qf3 {[%emt 0:00:17]} Ne8 {[%emt 0:02:31]} 18. Kh2 {[%emt 0:04:18]} Rc7 {[%emt 0:01:55]} 19. g4 {[%emt 0:01:00]} Rb8 {[%emt 0:13:36]} 20. Rg1 {[%emt 0:05:15]} Bc8 $14 {[%emt 0:02:04]} 21. Ng3 {[%emt 0:02:27]} Qb7 {[%emt 0:03:09]} 22. axb5 {[%emt 0:04:05]} axb5 {[%emt 0:00:08]} 23. Rg2 {[%emt 0:01:34]} Na6 {[%emt 0:02:41]} 24. Rag1 {[%emt 0:01:57]} b4 {[%emt 0:01:17]} 25. Nb1 {[%emt 0:01:04]} Nc5 {[%emt 0:09:16]} 26. Nh5 {[%emt 0:12:34]} b3 {[%emt 0:04:38]} 27. Bd1 {[%emt 0:00:17]} Nd3 {[%emt 0:00:06]} 28. Qe2 {[%emt 0:03:59]} Ra8 {[%emt 0:00:24]} 29. Na3 {[%emt 0:00:26]} Qa6 {[%emt 0:00:16]} 30. g5 {[%emt 0:03:13]} Nxb2 {[%emt 0:08:00]} 31. Nf6+ {[%emt 0:01:04]} Nxf6 {[%emt 0:00:06]} 32. gxf6 {[%emt 0:00:05]} g6 {[%emt 0:00:06]} 33. Qh5 {[%emt 0:05:49]} Nxd1 {[%emt 0:05:54]} 34. Bh6 {[%emt 0:00:05]} Bg4 {[%emt 0:12:01]} 35. Rxg4 {[%emt 0:00:52]} Nxf2 {[%emt 0:08:19]} 36. R4g2 {[%emt 0:14:48]} Nxe4 {[%emt 0:01:03]} 37. Rxg6+ {[%emt 0:01:18]} fxg6 {[%emt 0:00:12]} 38. Rxg6+ {[%emt 0:00:03]} hxg6 {[%emt 0:02:27]} 39. Qxg6+ {[%emt 0:00:03]} Kh8 {[%emt 0:00:19]} 40. Bxf8 {[%emt 0:00:21]} Qa7 {[%emt 0:01:37]} 41. Bg7+ {[%emt 0:34:40]} Rxg7 {[%emt 0:30:30]} 42. fxg7+ {[%emt 0:00:06]} Qxg7 {[%emt 0:00:15]} 43. Qxe4 {[%emt 0:00:06]} Qg5 {[%emt 0:02:11]} 0-1

[Event "23rd Hoogeveen Open 2019"]
[Site "Hoogeveen"]
[Date "2019.10.26"]
[Round "9.14"]
[White "Dev, Shah"]
[Black "Wiersma, Eelke"]
[Result "1/2-1/2"]
[ECO "E42"]
[WhiteElo "2025"]
[BlackElo "2321"]
[Annotator "NA"]
[PlyCount "33"]
[EventDate "2019.10.19"]
[EventType "swiss"]
[EventCountry "NED"]
[SourceTitle "playchess.com"]
[Source "ChessBase"]
[SourceQuality "1"]
[TimeControl "40/5400+30:1800+30"]

{[%evp 10,26,33,19,17,32767,32767,6,32767,-14,22,22,32767,-77,-54,32767,-4,32767,39]} 1. d4 {[%emt 0:00:22]} Nf6 {[%emt 0:00:00]} 2. c4 {[%emt 0:00:04]} e6 {[%emt 0:00:00]} 3. Nc3 {[%emt 0:00:04]} Bb4 {[%emt 0:00:00]} 4. e3 {[%emt 0:00:06]} c5 {[%emt 0:00:12]} 5. Nge2 {[%emt 0:00:27]} b6 {[%emt 0:00:13]} 6. a3 {[%emt 0:00:09]} Ba5 {[%emt 0:00:11]} 7. Bd2 {[%emt 0:00:15]} O-O {[%emt 0:04:56]} 8. Ng3 {[%emt 0:10:58]} Bb7 {[%emt 0:01:45]} 9. Rb1 {[%emt 0:09:07]} Bxc3 {[%emt 0:10:40]} 10. Bxc3 {[%emt 0:00:58]} d5 {[%emt 0:02:31]} 11. cxd5 {[%emt 0:05:23]} (11. dxc5 $11 bxc5 12. Be2) 11... Nxd5 {[%emt 0:05:15]} 12. Bd3 {[%emt 0:02:18]} Nc6 {[%emt 0:02:48]} ({Black should try} 12... Nxc3 $17 13. bxc3 Qe7) 13. dxc5 {[%emt 0:01:50]} bxc5 $14 {[%emt 0:09:30]} 14. O-O {[%emt 0:06:51]} Nxc3 {[%emt 0:03:00]} 15. bxc3 {[%emt 0:01:44]} Rb8 {[%emt 0:02:57]} 16. Ne4 {[%emt 0:16:39]} Qe7 {[%emt 0:05:02]} 17. Nd6 {[%emt 0:04:55]} 1/2-1/2

[Event "23rd Hoogeveen Open 2019"]
[Site "Hoogeveen"]
[Date "2019.10.26"]
[Round "9.15"]
[White "Emans, Job"]
[Black "Elgersma, Onno"]
[Result "0-1"]
[ECO "E05"]
[WhiteElo "2028"]
[BlackElo "2306"]
[Annotator "NA"]
[PlyCount "149"]
[EventDate "2019.10.19"]
[EventType "swiss"]
[EventCountry "NED"]
[SourceTitle "playchess.com"]
[Source "ChessBase"]
[SourceQuality "1"]
[TimeControl "40/5400+30:1800+30"]

1. d4 {[%emt 0:00:00]} d5 {[%emt 0:00:00]} 2. c4 {[%emt 0:00:00]} e6 {[%emt 0:00:00]} 3. Nf3 {[%emt 0:00:00]} Nf6 {[%emt 0:00:00]} 4. g3 {[%emt 0:00:00]} Be7 {[%emt 0:01:25]} 5. Bg2 {[%emt 0:00:10]} O-O {[%emt 0:00:05]} 6. O-O {[%emt 0:00:08]} dxc4 {[%emt 0:00:08]} 7. Qc2 {[%emt 0:00:38]} a6 {[%emt 0:04:45]} 8. Qxc4 {[%emt 0:00:16]} b5 {[%emt 0:00:03]} 9. Qc2 {[%emt 0:00:13]} Bb7 {[%emt 0:00:03]} 10. Bd2 {[%emt 0:00:37]} Be4 {[%emt 0:00:04]} 11. Qb3 {[%emt 0:00:33]} Nc6 {[%emt 0:06:15]} 12. e3 {[%emt 0:03:34]} b4 {[%emt 0:09:42]} 13. Rc1 {[%emt 0:03:56]} Bd5 {[%emt 0:09:50] [#]} (13... Rb8 $11) 14. Qc2 {[%emt 0:07:55]} (14. Qa4 $1 $16) 14... Rc8 $11 {[%emt 0:04:10]} 15. Ng5 {[%emt 0:19:55]} Bxg2 {[%emt 0:01:25]} 16. Kxg2 {[%emt 0:00:13]} Nb8 {[%emt 0:00:57]} 17. a3 {[%emt 0:09:30]} c5 {[%emt 0:08:21]} 18. Nf3 {[%emt 0:01:31]} Qd7 {[%emt 0:03:49]} 19. Qb3 {[%emt 0:04:45]} cxd4 {[%emt 0:07:12]} 20. Rxc8 {[%emt 0:00:52]} Rxc8 {[%emt 0:00:06]} 21. Nxd4 {[%emt 0:00:12]} bxa3 {[%emt 0:07:46]} 22. Nxa3 {[%emt 0:01:59]} Ne4 {[%emt 0:07:07]} 23. Be1 {[%emt 0:05:14]} Nc5 {[%emt 0:02:57]} 24. Qd1 {[%emt 0:01:55]} Qb7+ {[%emt 0:00:40]} 25. Kg1 {[%emt 0:03:11]} Qxb2 {[%emt 0:02:03]} 26. Nc4 {[%emt 0:00:17]} Qb7 {[%emt 0:00:07]} 27. Rb1 {[%emt 0:00:30]} Qe4 {[%emt 0:01:04]} 28. Bb4 {[%emt 0:09:56]} Nbd7 {[%emt 0:03:15]} 29. f3 {[%emt 0:02:09]} Qd5 {[%emt 0:02:18]} 30. Qe2 {[%emt 0:02:40]} Rb8 {[%emt 0:02:05]} 31. Qc2 {[%emt 0:00:46]} h6 {[%emt 0:04:11]} 32. Kg2 {[%emt 0:01:35]} Bf6 {[%emt 0:02:27]} 33. Ne2 {[%emt 0:03:19]} a5 {[%emt 0:07:29]} 34. Rd1 {[%emt 0:04:37]} Qc6 {[%emt 0:04:27]} 35. Bxa5 {[%emt 0:01:16]} Nb3 {[%emt 0:00:31]} 36. Qe4 {[%emt 0:05:35]} Qxe4 {[%emt 0:00:32]} 37. fxe4 {[%emt 0:00:03]} Ndc5 {[%emt 0:00:34]} 38. Kf3 {[%emt 0:01:52]} Nxa5 {[%emt 0:00:30]} 39. Nxa5 {[%emt 0:00:02]} Ra8 {[%emt 0:00:10]} 40. Nc6 {[%emt 0:01:46]} Ra6 {[%emt 0:00:10]} 41. Ncd4 {[%emt 0:32:45]} Nd7 {[%emt 0:01:41]} 42. h3 {[%emt 0:00:00]} Ne5+ {[%emt 0:01:32]} 43. Kf2 {[%emt 0:00:00]} Ra3 {[%emt 0:00:58]} 44. Nb5 {[%emt 0:00:00]} Rb3 {[%emt 0:01:00]} 45. Nbd4 {[%emt 0:00:00]} Rb2 {[%emt 0:01:04]} 46. Nf3 {[%emt 0:00:00]} Nc4 {[%emt 0:01:52]} 47. Rd3 {[%emt 0:00:00]} g6 {[%emt 0:00:55]} 48. Kf1 {[%emt 0:00:00]} Kg7 {[%emt 0:01:28]} 49. Kf2 {[%emt 0:00:00]} h5 {[%emt 0:03:18]} 50. Kf1 {[%emt 0:00:00]} Rb4 {[%emt 0:02:39]} 51. Nfd4 {[%emt 0:00:00]} Nxe3+ {[%emt 0:05:23]} 52. Rxe3 {[%emt 0:00:00]} Bxd4 {[%emt 0:00:04]} 53. Nxd4 {[%emt 0:00:00]} Rxd4 {[%emt 0:00:02]} 54. e5 {[%emt 0:00:00]} Rd2 {[%emt 0:01:55]} 55. Rf3 {[%emt 0:00:00]} g5 {[%emt 0:01:15]} 56. Ke1 {[%emt 0:00:20]} Rh2 {[%emt 0:04:10]} 57. Kf1 {[%emt 0:01:28]} Rh1+ {[%emt 0:00:56]} 58. Kf2 {[%emt 0:00:21]} Ra1 {[%emt 0:01:34]} 59. Re3 {[%emt 0:02:21]} Ra5 {[%emt 0:00:25]} 60. Kf3 {[%emt 0:00:38]} Kg6 {[%emt 0:00:15]} 61. g4 {[%emt 0:01:33]} h4 {[%emt 0:01:09]} 62. Ke4 {[%emt 0:02:50]} Ra4+ {[%emt 0:00:39]} 63. Kf3 {[%emt 0:00:20]} Rf4+ {[%emt 0:00:19]} 64. Ke2 {[%emt 0:00:37]} Kg7 {[%emt 0:00:10]} 65. Ke1 {[%emt 0:00:53]} Kf8 {[%emt 0:00:22]} 66. Ke2 {[%emt 0:00:21]} Ke7 {[%emt 0:00:41]} 67. Kd2 {[%emt 0:03:12]} Rf2+ {[%emt 0:00:51]} 68. Kc3 {[%emt 0:00:35]} Rg2 {[%emt 0:01:41]} 69. Kc4 {[%emt 0:00:41]} Rg3 {[%emt 0:00:44]} 70. Kd4 {[%emt 0:01:09]} Kd7 {[%emt 0:00:17]} 71. Ke4 {[%emt 0:00:50]} Rxe3+ {[%emt 0:00:21]} 72. Kxe3 {[%emt 0:00:40]} Kc6 {[%emt 0:00:04]} 73. Kd4 {[%emt 0:00:25]} Kb5 {[%emt 0:00:06]} 74. Ke3 {[%emt 0:00:37]} Kc4 {[%emt 0:00:10]} 75. Ke4 {[%emt 0:00:10]} 0-1